fUST/lending_fUST_20250611
["ID","MTS","AMOUNT","RATE_DAILY","PERIOD"]
[365316807,1749595848178,-353.5865892,0.0002411,2]
[365316808,1749595848187,-153.0,0.0002411,2]
[365316809,1749595848197,-176.8341807,0.0002411,2]
[365316810,1749595848206,-312.5513002,0.0002411,2]
[365316811,1749595848216,-158.7504224,0.0002411,2]
[365316812,1749595848225,-573.3540349,0.0002411,2]
[365316813,1749595848235,-176.8341807,0.0002411,2]
[365316814,1749595848244,-158.7504224,0.0002411,2]
[365316815,1749595848254,-573.3540349,0.0002411,2]
[365316816,1749595848264,-176.8341807,0.0002411,2]
[365316817,1749595848273,-153.0,0.0002411,2]
[365316818,1749595848283,-573.3540349,0.0002411,2]
[365316819,1749595848292,-153.0,0.0002411,2]
[365316820,1749595848302,-158.7504224,0.0002411,2]
[365316821,1749595848311,-176.8341807,0.0002411,2]
[365316822,1749595848321,-1143.980675,0.0002411,2]
[365316823,1749595848330,-316.7438944,0.0002411,2]
[365316824,1749595848340,-309.8421927,0.0002411,2]
[365316825,1749595848350,-174.2531987,0.0002411,2]
[365316826,1749595848359,-158.1839445,0.0002411,2]
[365316827,1749595848370,-153.0,0.0002411,2]
[365316828,1749595848379,-573.3540349,0.0002411,2]
[365316829,1749595848388,-573.3540349,0.0002411,2]
[365316830,1749595848398,-153.0,0.0002411,2]
[365316831,1749595848408,-573.3540349,0.0002411,2]
[365316832,1749595848417,-573.3540349,0.0002411,2]
[365316833,1749595848427,-153.0,0.0002411,2]
[365316834,1749595848436,-153.0,0.0002411,2]
[365316835,1749595848446,-153.0,0.0002411,2]
[365316836,1749595848456,-1495.10013057,0.00024112,2]
[365316837,1749595848466,-439.0150148,0.00024147,2]
[365316838,1749595848477,-1058.83509815,0.00024176,10]
[365316839,1749595848486,-151.0,0.00024181,2]
[365316840,1749595848496,-5000.0,0.00024181,2]
[365316841,1749595848506,-800.0,0.00024195,2]
[365316842,1749595848515,-151.0,0.00024216,7]
[365316843,1749595848525,-129776.69,0.00024225,11]
[365316844,1749595848535,-1347.69737,0.00024274,3]
[365316845,1749595848545,-1058.83509815,0.00024279,10]
[365316846,1749595848554,-151.0,0.000243,5]
[365316847,1749595848564,-600.0,0.00024352,2]
[365316848,1749595848574,-1058.83509815,0.00024383,11]
[365316849,1749595848584,-460.0,0.00024383,4]
[365316850,1749595848594,-460.0,0.00024383,4]
[365316851,1749595848605,-400.0,0.00024383,4]
[365316852,1749595848615,-1916.34,0.00024383,4]
[365316853,1749595848624,-460.0,0.00024383,4]
[365316854,1749595848633,-782.51,0.00024383,4]
[365316855,1749595848644,-1382.4,0.00024383,4]
[365316856,1749595848654,-478.05,0.00024383,4]
[365316857,1749595848664,-460.0,0.00024383,4]
[365316858,1749595848674,-460.0,0.00024383,2]
[365316859,1749595848684,-1289.2,0.00024383,4]
[365316860,1749595848694,-1717.68,0.00024383,4]
[365316861,1749595848704,-663.23,0.00024383,4]
[365316862,1749595848714,-460.0,0.00024383,4]
[365316863,1749595848724,-460.0,0.00024383,4]
[365316864,1749595848734,-823.06,0.00024383,4]
[365316865,1749595848744,-2040.77,0.00024383,4]
[365316866,1749595848756,-491.72,0.00024383,4]
[365316867,1749595848766,-1428.79,0.00024383,4]
[365316868,1749595848776,-757.53,0.00024383,4]
[365316869,1749595848786,-1343.45,0.00024383,4]
[365316870,1749595848796,-977.91,0.00024383,4]
[365316871,1749595848806,-744.73,0.00024383,4]
[365316872,1749595848816,-1685.54,0.00024383,4]
[365316873,1749595848825,-460.0,0.00024383,4]
[365316874,1749595848837,-626.43,0.00024383,4]
[365316875,1749595848847,-151.0,0.00024387,7]
[365316876,1749595848857,-2500.0,0.00024398,2]
[365316877,1749595848868,-151.0,0.000244,7]
[365316878,1749595848877,-151.0,0.000244,7]
[365316879,1749595848886,-151.0,0.000244,7]
[365316880,1749595848897,-735.66,0.000244,7]
[365316881,1749595848907,-55729.32,0.000244,7]
[365316882,1749595848917,-194.83364991,0.00024428,2]
[365316883,1749595848927,-7825.36708508,0.00024449,2]
[365316884,1749595848936,-5000.0,0.00024449,2]
[365316885,1749595848946,-5000.0,0.00024449,2]
[365316886,1749595848956,-2206.15113997,0.00024483,2]
[365316887,1749595849036,-380.0,0.00021643,4]
[365316888,1749595849045,-3.112,0.00024483,2]
[365316889,1749595849057,-772.79413623,0.00024483,2]
[365316890,1749595849068,-493.28256153,0.00024483,2]
[365316891,1749595849102,-460.0,0.00021095,4]
[365316892,1749595849111,-460.0,0.00021369,4]
[365316893,1749595849120,-460.0,0.00021643,4]
[365316894,1749595849129,-320.0,0.00021917,4]
[365316895,1749595849139,-638.73016227,0.00024483,2]
[365316896,1749595849218,-1058.83509815,0.00024486,11]
[365316897,1749595849228,-151.0,0.000245,7]
[365316898,1749595849237,-397.0,0.00024525,2]
[365316899,1749595849247,-167.70861884,0.00024551,2]
[365316900,1749595849257,-151.0,0.00024558,7]
[365316901,1749595849266,-1058.83509815,0.0002459,11]
[365316902,1749595849276,-151.0,0.000246,7]
[365316903,1749595849285,-151.0,0.000246,7]
[365316904,1749595849294,-151.0,0.000246,7]
[365316905,1749595849303,-151.0,0.000246,7]
[365316906,1749595849313,-229.6792923,0.000246,7]
[365316907,1749595849322,-160.0,0.000246,7]
[365316908,1749595849331,-2361.11373877,0.0002465,60]
[365316909,1749595849342,-533.0588397,0.0002465,60]
[365316913,1749596196304,520.0,0.00024657,120]
[365316914,1749596384538,273.4,0.00024923,120]
[365316915,1749596419997,273.4,0.00024923,120]
[365316919,1749596761827,364.412037,0.00013699,2]
[365316959,1749596958823,1408.94,0.00018,2]
[365317022,1749597032059,-351.63552655,0.00019534,2]
[365317024,1749597032073,-238.55447345,0.00019534,2]
[365317026,1749597032083,-164.41777789,0.00019541,2]
[365317028,1749597032094,-176.06018597,0.00019541,2]
[365317030,1749597032104,-180.75821,0.00019896,2]
[365317032,1749597032115,-364.412037,0.00020187,2]
[365317034,1749597032129,-305.97758658,0.00020444,2]
[365317036,1749597032138,-1180.37,0.00020465,2]
[365317038,1749597032148,-174.58932729,0.00020995,2]
[365317040,1749597032158,-257.67993791,0.00021063,2]
[365317042,1749597032167,-500.0,0.00021064,2]
[365317044,1749597032178,-300.0,0.00021094,2]
[365317046,1749597032187,-153.81,0.00021094,2]
[365317049,1749597032199,-300.0,0.00021094,2]
[365317051,1749597032210,-430.0,0.00021095,4]
[365317053,1749597032220,-430.0,0.00021095,4]
[365317055,1749597032230,-430.0,0.00021095,4]
[365317057,1749597032239,-308.24959544,0.00021095,4]
[365317059,1749597032250,-309.98991249,0.00021095,4]
[365317061,1749597032260,-450.0,0.00021095,4]
[365317063,1749597032270,-460.0,0.00021095,4]
[365317065,1749597032283,-325.29681802,0.00021095,4]
[365317066,1749597032293,-440.0,0.00021095,4]
[365317068,1749597032303,-460.0,0.00021095,4]
[365317070,1749597032312,-440.0,0.00021095,4]
[365317072,1749597032322,-440.0,0.00021095,4]
[365317074,1749597032331,-440.0,0.00021095,4]
[365317076,1749597032341,-448.33,0.00021095,4]
[365317078,1749597032351,-460.0,0.00021095,4]
[365317080,1749597032362,-394.53,0.00021095,4]
[365317082,1749597032372,-430.0,0.00021095,4]
[365317084,1749597032382,-460.0,0.00021095,4]
[365317086,1749597032392,-399.86829182,0.00021095,4]
[365317088,1749597032402,-395.95031128,0.00021095,4]
[365317090,1749597032411,-587.25,0.00021095,4]
[365317092,1749597032421,-206.82,0.00021095,4]
[365317094,1749597032431,-460.0,0.00021095,4]
[365317096,1749597032441,-460.0,0.00021095,4]
[365317098,1749597032450,-407.827277,0.00021095,4]
[365317100,1749597032461,-460.0,0.00021095,4]
[365317102,1749597032471,-460.0,0.00021095,4]
[365317104,1749597032481,-400.0,0.00021095,4]
[365317106,1749597032494,-597.49,0.00021095,4]
[365317108,1749597032514,-440.0,0.00021095,4]
[365317110,1749597032524,-440.0,0.00021095,4]
[365317113,1749597032538,-390.0,0.00021095,4]
[365317115,1749597032551,-272.5430213,0.00021095,4]
[365317117,1749597032564,-460.0,0.00021095,4]
[365317120,1749597032577,-460.0,0.00021095,4]
[365317122,1749597032590,-460.0,0.00021095,4]
[365317124,1749597032601,-235.10267865,0.00021095,4]
[365317126,1749597032615,-460.0,0.00021095,4]
[365317128,1749597032628,-460.0,0.00021095,4]
[365317130,1749597032640,-460.0,0.00021095,4]
[365317132,1749597032655,-460.0,0.00021095,2]
[365317134,1749597032668,-460.0,0.00021095,4]
[365317136,1749597032680,-440.0,0.00021095,4]
[365317139,1749597032693,-460.0,0.00021095,4]
[365317140,1749597032704,-440.0,0.00021095,4]
[365317141,1749597032715,-460.0,0.00021095,4]
[365317142,1749597032727,-533.82,0.00021095,4]
[365317143,1749597032740,-440.0,0.00021095,4]
[365317144,1749597032756,-1273.22,0.00021095,4]
[365317145,1749597032767,-460.0,0.00021095,4]
[365317146,1749597032778,-460.0,0.00021095,4]
[365317147,1749597032789,-420.0,0.00021095,4]
[365317148,1749597032801,-606.08,0.00021095,4]
[365317149,1749597032812,-460.0,0.00021095,4]
[365317150,1749597032823,-440.0,0.00021095,4]
[365317151,1749597032834,-1133.87,0.00021095,4]
[365317152,1749597032846,-460.0,0.00021095,4]
[365317153,1749597032859,-585.0,0.00021095,4]
[365317154,1749597032873,-460.0,0.00021095,4]
[365317155,1749597032885,-440.0,0.00021095,4]
[365317156,1749597032897,-460.0,0.00021095,4]
[365317157,1749597032908,-460.0,0.00021095,4]
[365317158,1749597032918,-440.0,0.00021095,4]
[365317159,1749597032928,-1005.86,0.00021095,4]
[365317160,1749597032941,-1145.81,0.00021095,4]
[365317161,1749597032951,-440.0,0.00021095,4]
[365317162,1749597032963,-460.0,0.00021095,4]
[365317163,1749597032976,-460.0,0.00021095,4]
[365317164,1749597032988,-460.0,0.00021095,4]
[365317165,1749597033001,-1433.68,0.00021095,4]
[365317166,1749597033013,-749.64,0.00021095,4]
[365317167,1749597033026,-440.0,0.00021095,4]
[365317168,1749597033039,-1546.26,0.00021095,4]
[365317169,1749597033053,-509.28,0.00021095,4]
[365317170,1749597033066,-460.0,0.00021095,4]
[365317171,1749597033080,-920.94,0.00021095,4]
[365317172,1749597033093,-460.0,0.00021095,4]
[365317173,1749597033104,-460.0,0.00021095,4]
[365317174,1749597033118,-460.0,0.00021095,4]
[365317175,1749597033131,-1127.7,0.00021095,4]
[365317176,1749597033142,-1522.99,0.00021095,4]
[365317177,1749597033155,-460.0,0.00021095,4]
[365317178,1749597033167,-460.0,0.00021369,4]
[365317179,1749597033180,-264.67,0.00021369,4]
[365317180,1749597033193,-460.0,0.00021369,4]
[365317181,1749597033206,-420.0,0.00021369,4]
[365317182,1749597033218,-587.25,0.00021369,4]
[365317183,1749597033229,-460.0,0.00021369,4]
[365317184,1749597033239,-460.0,0.00021369,4]
[365317185,1749597033251,-460.0,0.00021369,4]
[365317186,1749597033264,-460.0,0.00021369,4]
[365317187,1749597033277,-597.49,0.00021369,4]
[365317188,1749597033295,-420.0,0.00021369,4]
[365317189,1749597033307,-460.0,0.00021369,4]
[365317190,1749597033318,-460.0,0.00021369,4]
[365317191,1749597033329,-460.0,0.00021369,4]
[365317192,1749597033339,-460.0,0.00021369,4]
[365317193,1749597033349,-420.0,0.00021369,4]
[365317194,1749597033362,-460.0,0.00021369,2]
[365317195,1749597033373,-460.0,0.00021369,4]
[365317196,1749597033383,-373.92,0.00021369,4]
[365317197,1749597033394,-533.82,0.00021369,4]
[365317198,1749597033405,-1273.22,0.00021369,4]
[365317199,1749597033416,-460.0,0.00021369,4]
[365317200,1749597033427,-460.0,0.00021369,4]
[365317201,1749597033438,-606.08,0.00021369,4]
[365317202,1749597033449,-460.0,0.00021369,4]
[365317203,1749597033459,-1133.87,0.00021369,4]
[365317204,1749597033471,-460.0,0.00021369,4]
[365317205,1749597033481,-585.0,0.00021369,4]
[365317206,1749597033492,-460.0,0.00021369,4]
[365317207,1749597033503,-420.0,0.00021369,4]
[365317208,1749597033513,-460.0,0.00021369,4]
[365317209,1749597033524,-1005.86,0.00021369,4]
[365317210,1749597033535,-1145.81,0.00021369,4]
[365317211,1749597033546,-420.0,0.00021369,4]
[365317212,1749597033557,-460.0,0.00021369,4]
[365317213,1749597033568,-460.0,0.00021369,4]
[365317214,1749597033580,-749.64,0.00021369,4]
[365317215,1749597033591,-1433.68,0.00021369,4]
[365317216,1749597033602,-1546.26,0.00021369,4]
[365317217,1749597033616,-509.28,0.00021369,4]
[365317218,1749597033627,-460.0,0.00021369,4]
[365317219,1749597033638,-920.94,0.00021369,4]
[365317220,1749597033648,-371.76,0.00021369,4]
[365317221,1749597033659,-460.0,0.00021369,4]
[365317222,1749597033669,-460.0,0.00021369,4]
[365317223,1749597033681,-1127.7,0.00021369,4]
[365317224,1749597033692,-1522.99,0.00021369,4]
[365317225,1749597033703,-1770.56,0.00021395,2]
[365317226,1749597033714,-385.28820027,0.0002156,2]
[365317227,1749597033724,-500.0,0.00021595,2]
[365317228,1749597033735,-378.73360465,0.00021642,2]
[365317229,1749597033746,-460.0,0.00021643,4]
[365317230,1749597033757,-460.0,0.00021643,4]
[365317231,1749597033767,-587.25,0.00021643,4]
[365317232,1749597033778,-460.0,0.00021643,4]
[365317233,1749597033789,-460.0,0.00021643,4]
[365317234,1749597033800,-460.0,0.00021643,4]
[365317235,1749597033812,-460.0,0.00021643,4]
[365317236,1749597033823,-597.49,0.00021643,4]
[365317237,1749597033835,-390.0,0.00021643,4]
[365317238,1749597033846,-460.0,0.00021643,4]
[365317239,1749597033857,-460.0,0.00021643,4]
[365317240,1749597033874,-460.0,0.00021643,4]
[365317241,1749597033885,-460.0,0.00021643,2]
[365317242,1749597033897,-400.0,0.00021643,4]
[365317243,1749597033908,-533.82,0.00021643,4]
[365317244,1749597033919,-371.53748614,0.00021643,4]
[365317245,1749597033935,-602.243782,0.00021643,4]
[365317289,1749597038214,-272.5430213,0.00021369,4]
[365317291,1749597038253,-187.4569787,0.00021369,4]
[365317292,1749597038263,-299.43873186,0.00021643,4]
[365317293,1749597038272,-460.0,0.00021643,4]
[365317294,1749597038282,-460.0,0.00021643,4]
[365317295,1749597038291,-606.08,0.00021643,4]
[365317296,1749597038301,-460.0,0.00021643,4]
[365317297,1749597038310,-1133.87,0.00021643,4]
[365317298,1749597038319,-460.0,0.00021643,4]
[365317299,1749597038328,-121.67593049,0.00021643,4]
[365317300,1749597038340,-463.32406951,0.00021643,4]
[365317301,1749597038349,-460.0,0.00021643,4]
[365317302,1749597038358,-460.0,0.00021643,4]
[365317303,1749597038371,-824.23533133,0.00021643,4]
[365317304,1749597038382,-181.62466867,0.00021643,4]
[365317305,1749597038392,-1145.81,0.00021643,4]
[365317306,1749597038402,-400.0,0.00021643,4]
[365317307,1749597038411,-460.0,0.00021643,4]
[365317308,1749597038420,-749.64,0.00021643,4]
[365317309,1749597038430,-593.2881706,0.00021643,4]
[365317310,1749597038488,-840.3918294,0.00021643,4]
[365317311,1749597038498,-1546.26,0.00021643,4]
[365317312,1749597038507,-509.28,0.00021643,4]
[365317313,1749597038517,-460.0,0.00021643,4]
[365317314,1749597038527,-920.94,0.00021643,4]
[365317315,1749597038536,-400.0,0.00021643,4]
[365317316,1749597038546,-460.0,0.00021643,4]
[365317317,1749597038556,-1127.7,0.00021643,4]
[365317318,1749597038566,-1522.99,0.00021643,4]
[365317319,1749597038576,-400.0,0.00021643,4]
[365317320,1749597038586,-460.0,0.00021917,4]
[365317321,1749597038596,-460.0,0.00021917,4]
[365317322,1749597038606,-587.25,0.00021917,4]
[365317323,1749597038619,-380.0,0.00021917,4]
[365317324,1749597038630,-460.0,0.00021917,4]
[365317325,1749597038640,-460.0,0.00021917,4]
[365317326,1749597038650,-597.49,0.00021917,4]
[365317327,1749597038660,-460.0,0.00021917,4]
[365317328,1749597038669,-460.0,0.00021917,4]
[365317329,1749597038679,-460.0,0.00021917,4]
[365317330,1749597038689,-460.0,0.00021917,2]
[365317331,1749597038698,-533.82,0.00021917,4]
[365317332,1749597038708,-1273.22,0.00021917,4]
[365317333,1749597038718,-460.0,0.00021917,4]
[365317334,1749597038728,-460.0,0.00021917,4]
[365317335,1749597038738,-606.08,0.00021917,4]
[365317336,1749597038748,-460.0,0.00021917,4]
[365317337,1749597038758,-1133.87,0.00021917,4]
[365317338,1749597038768,-460.0,0.00021917,4]
[365317339,1749597038777,-585.0,0.00021917,4]
[365317340,1749597038787,-460.0,0.00021917,4]
[365317341,1749597038797,-460.0,0.00021917,4]
[365317342,1749597038807,-1005.86,0.00021917,4]
[365317343,1749597038817,-1145.81,0.00021917,4]
[365317344,1749597038826,-460.0,0.00021917,4]
[365317345,1749597038836,-749.64,0.00021917,4]
[365317346,1749597038846,-1433.68,0.00021917,4]
[365317347,1749597038855,-1546.26,0.00021917,4]
[365317348,1749597038869,-509.28,0.00021917,4]
[365317349,1749597038878,-460.0,0.00021917,4]
[365317350,1749597038888,-920.94,0.00021917,4]
[365317351,1749597038897,-460.0,0.00021917,4]
[365317352,1749597038907,-1127.7,0.00021917,4]
[365317353,1749597038917,-1522.99,0.00021917,4]
[365317354,1749597038927,-187.0,0.00022,2]
[365317355,1749597038936,-500.0,0.0002216,2]
[365317356,1749597038946,-399.07,0.00022191,4]
[365317357,1749597038955,-360.0,0.00022191,4]
[365317358,1749597038964,-587.25,0.00022191,4]
[365317359,1749597038974,-460.0,0.00022191,4]
[365317360,1749597038983,-460.0,0.00022191,4]
[365317361,1749597038993,-597.49,0.00022191,4]
[365317362,1749597039002,-460.0,0.00022191,4]
[365317363,1749597039011,-412.05,0.00022191,4]
[365317364,1749597039021,-460.0,0.00022191,4]
[365317365,1749597039030,-460.0,0.00022191,2]
[365317366,1749597039039,-533.82,0.00022191,4]
[365317367,1749597039048,-1273.22,0.00022191,4]
[365317368,1749597039058,-460.0,0.00022191,4]
[365317369,1749597039067,-460.0,0.00022191,4]
[365317370,1749597039076,-606.08,0.00022191,4]
[365317371,1749597039086,-460.0,0.00022191,4]
[365317372,1749597039096,-1133.87,0.00022191,4]
[365317373,1749597039106,-380.0,0.00022191,4]
[365317374,1749597039117,-585.0,0.00022191,4]
[365317375,1749597039129,-380.0,0.00022191,4]
[365317376,1749597039139,-317.56,0.00022191,4]
[365317377,1749597039148,-1005.86,0.00022191,4]
[365317378,1749597039158,-1145.81,0.00022191,4]
[365317379,1749597039168,-460.0,0.00022191,4]
[365317380,1749597039177,-749.64,0.00022191,4]
[365317381,1749597039187,-1433.68,0.00022191,4]
[365317382,1749597039196,-1546.26,0.00022191,4]
[365317383,1749597039206,-509.28,0.00022191,4]
[365317384,1749597039217,-460.0,0.00022191,4]
[365317385,1749597039226,-920.94,0.00022191,4]
[365317386,1749597039236,-360.0,0.00022191,4]
[365317387,1749597039246,-1127.7,0.00022191,4]
[365317388,1749597039256,-1522.99,0.00022191,4]
[365317389,1749597039265,-738.51,0.000222,7]
[365317390,1749597039274,-166.31295545,0.000222,69]
[365317391,1749597039284,-2360.75,0.00022325,2]
[365317392,1749597039294,-400.0,0.00022465,4]
[365317393,1749597039304,-400.0,0.00022465,4]
[365317394,1749597039313,-400.0,0.00022465,4]
[365317395,1749597039322,-400.0,0.00022465,4]
[365317396,1749597039331,-400.0,0.00022465,4]
[365317398,1749597039341,-400.0,0.00022465,4]
[365317399,1749597039350,-587.25,0.00022465,4]
[365317400,1749597039360,-460.0,0.00022465,4]
[365317401,1749597039371,-460.0,0.00022465,4]
[365317402,1749597039380,-597.49,0.00022465,4]
[365317403,1749597039390,-360.0,0.00022465,4]
[365317404,1749597039399,-460.0,0.00022465,4]
[365317405,1749597039408,-460.0,0.00022465,2]
[365317406,1749597039417,-533.82,0.00022465,4]
[365317407,1749597039427,-1273.22,0.00022465,4]
[365317408,1749597039436,-460.0,0.00022465,4]
[365317409,1749597039445,-460.0,0.00022465,4]
[365317410,1749597039454,-606.08,0.00022465,4]
[365317411,1749597039463,-460.0,0.00022465,4]
[365317412,1749597039472,-1133.87,0.00022465,4]
[365317413,1749597039481,-585.0,0.00022465,4]
[365317414,1749597039491,-1005.86,0.00022465,4]
[365317415,1749597039501,-1145.81,0.00022465,4]
[365317416,1749597039510,-460.0,0.00022465,4]
[365317417,1749597039519,-749.64,0.00022465,4]
[365317418,1749597039529,-1433.68,0.00022465,4]
[365317419,1749597039538,-1546.26,0.00022465,4]
[365317420,1749597039547,-509.28,0.00022465,4]
[365317421,1749597039556,-460.0,0.00022465,4]
[365317422,1749597039565,-920.94,0.00022465,4]
[365317423,1749597039574,-1127.7,0.00022465,4]
[365317424,1749597039583,-1522.99,0.00022465,4]
[365317425,1749597039594,-400.0,0.00022739,4]
[365317426,1749597039603,-587.25,0.00022739,4]
[365317427,1749597039613,-460.0,0.00022739,4]
[365317428,1749597039624,-460.0,0.00022739,4]
[365317429,1749597039634,-597.49,0.00022739,4]
[365317430,1749597039643,-460.0,0.00022739,4]
[365317431,1749597039653,-460.0,0.00022739,2]
[365317432,1749597039662,-533.82,0.00022739,4]
[365317433,1749597039671,-1273.22,0.00022739,4]
[365317434,1749597039680,-460.0,0.00022739,4]
[365317435,1749597039689,-460.0,0.00022739,4]
[365317436,1749597039698,-606.08,0.00022739,4]
[365317437,1749597039708,-460.0,0.00022739,4]
[365317438,1749597039718,-1133.87,0.00022739,4]
[365317439,1749597039728,-585.0,0.00022739,4]
[365317440,1749597039739,-1005.86,0.00022739,4]
[365317441,1749597039749,-1145.81,0.00022739,4]
[365317442,1749597039758,-460.0,0.00022739,4]
[365317443,1749597039767,-749.64,0.00022739,4]
[365317444,1749597039776,-1433.68,0.00022739,4]
[365317445,1749597039786,-1546.26,0.00022739,4]
[365317446,1749597039795,-509.28,0.00022739,4]
[365317447,1749597039804,-460.0,0.00022739,4]
[365317448,1749597039814,-920.94,0.00022739,4]
[365317449,1749597039823,-1127.7,0.00022739,4]
[365317450,1749597039832,-1522.99,0.00022739,4]
[365317451,1749597039842,-834.9046531,0.00022748,2]
[365317452,1749597039851,-424.12530924,0.00022748,2]
[365317453,1749597039860,-842.5625,0.00022748,2]
[365317454,1749597039872,-11858.11761888,0.00022748,2]
[365317455,1749597039882,-213.1263252,0.00022748,2]
[365317456,1749597039891,-160.0,0.00022748,2]
[365317457,1749597039901,-160.0,0.00022748,2]
[365317458,1749597039910,-229.6792923,0.00022748,2]
[365317459,1749597039920,-279.24115905,0.00022823,2]
[365317460,1749597039929,-174.58932727,0.00022911,2]
[365317461,1749597039938,-420.0,0.00022943,2]
[365317462,1749597039947,-420.0,0.00022943,2]
[365317463,1749597039957,-400.0,0.00023013,4]
[365317464,1749597039966,-587.25,0.00023013,4]
[365317465,1749597039976,-460.0,0.00023013,4]
[365317466,1749597039985,-460.0,0.00023013,4]
[365317467,1749597039994,-597.49,0.00023013,4]
[365317468,1749597040004,-460.0,0.00023013,4]
[365317469,1749597040013,-276.5317678,0.00023013,2]
[365317470,1749597040023,-533.82,0.00023013,4]
[365317471,1749597040032,-1273.22,0.00023013,4]
[365317472,1749597040041,-211.95,0.00023013,4]
[365317473,1749597040050,-460.0,0.00023013,4]
[365317474,1749597040060,-606.08,0.00023013,4]
[365317475,1749597040069,-460.0,0.00023013,4]
[365317476,1749597040079,-1133.87,0.00023013,4]
[365317477,1749597040088,-585.0,0.00023013,4]
[365317478,1749597040098,-1005.86,0.00023013,4]
[365317479,1749597040108,-1145.81,0.00023013,4]
[365317480,1749597040121,-460.0,0.00023013,4]
[365317481,1749597040134,-749.64,0.00023013,4]
[365317482,1749597040144,-1433.68,0.00023013,4]
[365317483,1749597040154,-1546.26,0.00023013,4]
[365317484,1749597040164,-509.28,0.00023013,4]
[365317485,1749597040174,-460.0,0.00023013,4]
[365317486,1749597040184,-920.94,0.00023013,4]
[365317487,1749597040194,-1127.7,0.00023013,4]
[365317488,1749597040203,-1522.99,0.00023013,4]
[365317489,1749597040214,-187.0,0.00023014,7]
[365317490,1749597040223,-2950.93,0.00023255,2]
[365317491,1749597040233,-500.0,0.00023256,2]
[365317492,1749597040242,-342.4,0.00023287,4]
[365317493,1749597040252,-587.25,0.00023287,4]
[365317494,1749597040262,-460.0,0.00023287,4]
[365317495,1749597040271,-460.0,0.00023287,4]
[365317496,1749597040281,-597.49,0.00023287,4]
[365317498,1749597040292,-460.0,0.00023287,4]
[365317499,1749597040302,-533.82,0.00023287,4]
[365317500,1749597040312,-1273.22,0.00023287,4]
[365317501,1749597040322,-460.0,0.00023287,4]
[365317502,1749597040332,-606.08,0.00023287,4]
[365317503,1749597040342,-460.0,0.00023287,4]
[365317504,1749597040352,-1133.87,0.00023287,4]
[365317505,1749597040362,-585.0,0.00023287,4]
[365317506,1749597040374,-1005.86,0.00023287,4]
[365317507,1749597040384,-1145.81,0.00023287,4]
[365317508,1749597040393,-460.0,0.00023287,4]
[365317509,1749597040403,-749.64,0.00023287,4]
[365317510,1749597040413,-1433.68,0.00023287,4]
[365317511,1749597040423,-1546.26,0.00023287,4]
[365317512,1749597040433,-509.28,0.00023287,4]
[365317513,1749597040443,-460.0,0.00023287,4]
[365317514,1749597040452,-920.94,0.00023287,4]
[365317515,1749597040462,-1127.7,0.00023287,4]
[365317516,1749597040471,-1522.99,0.00023287,4]
[365317517,1749597040481,-3000.0,0.000234,2]
[365317518,1749597040491,-8487.66215222,0.000234,7]
[365317519,1749597040501,-8487.66215222,0.000234,7]